fUSD/lending_fUSD_20240822
["ID","MTS","AMOUNT","RATE_DAILY","PERIOD"]
[335503694,1724286643484,-500.0,0.00010997,2]
[335503695,1724286643493,-500.0,0.00010997,2]
[335503696,1724286643502,-500.0,0.00010997,2]
[335503697,1724286643511,-500.0,0.00010997,2]
[335503698,1724286643520,-500.0,0.00010997,2]
[335503699,1724286643531,-500.0,0.00010997,2]
[335503700,1724286643540,-1414.54,0.00010997,2]
[335503701,1724286643549,-1414.54,0.00010997,2]
[335503702,1724286643562,-1414.54,0.00010997,2]
[335503703,1724286643574,-500.0,0.00010997,2]
[335503704,1724286643584,-500.0,0.00010997,2]
[335503705,1724286643593,-500.0,0.00010997,2]
[335503706,1724286643602,-500.0,0.00010997,2]
[335503707,1724286643611,-500.0,0.00010997,2]
[335503708,1724286643621,-500.0,0.00010997,2]
[335503709,1724286643632,-642.30150514,0.00010997,2]
[335503710,1724286643642,-1215.58,0.00010997,2]
[335503711,1724286643656,-500.0,0.00010997,2]
[335503712,1724286643665,-491.86321592,0.00010997,2]
[335503713,1724286643674,-1215.58,0.00010997,2]
[335503714,1724286643683,-1215.58,0.00010997,2]
[335503715,1724286643693,-500.0,0.00010997,2]
[335503716,1724286643703,-500.0,0.00010997,2]
[335503717,1724286643712,-500.0,0.00010997,2]
[335503718,1724286643721,-2097.64,0.00010997,2]
[335503719,1724286643730,-2097.64,0.00010997,2]
[335503720,1724286643739,-2097.64,0.00010997,2]
[335503721,1724286643749,-500.0,0.00010997,2]
[335503722,1724286643758,-500.0,0.00010997,2]
[335503723,1724286643767,-501.00019874,0.00010997,2]
[335503724,1724286643776,-500.0,0.00010997,2]
[335503725,1724286643785,-500.0,0.00010997,2]
[335503726,1724286643794,-498.91620206,0.00010997,2]
[335503727,1724286643803,-500.0,0.00010997,2]
[335503728,1724286643812,-500.0,0.00010997,2]
[335503729,1724286643821,-500.0,0.00010997,2]
[335503730,1724286643830,-498.98893274,0.00010997,2]
[335503731,1724286643839,-577.16191591,0.00010997,2]
[335503732,1724286643849,-1475.22,0.00010997,2]
[335503733,1724286643858,-1475.22,0.00010997,2]
[335503734,1724286643867,-1475.22,0.00010997,2]
[335503735,1724286643878,-3034.69,0.00010997,2]
[335503736,1724286643887,-3034.69,0.00010997,2]
[335503737,1724286643896,-3034.69,0.00010997,2]
[335503738,1724286643905,-500.0,0.00010997,2]
[335503739,1724286643914,-500.0,0.00010997,2]
[335503740,1724286643923,-500.0,0.00010997,2]
[335503741,1724286643933,-500.0,0.00010997,2]
[335503742,1724286643942,-2379.24,0.00010997,2]
[335503743,1724286643951,-500.0,0.00010997,2]
[335503744,1724286643960,-2379.24,0.00010997,2]
[335503745,1724286643970,-500.0,0.00010997,2]
[335503746,1724286644062,-2379.24,0.00010997,2]
[335503747,1724286644072,-4171.03,0.00010997,2]
[335503748,1724286644081,-3498.2,0.00010997,2]
[335503749,1724286644090,-4171.03,0.00010997,2]
[335503750,1724286644099,-3498.2,0.00010997,2]
[335503751,1724286644108,-4171.03,0.00010997,2]
[335503752,1724286644117,-3498.2,0.00010997,2]
[335503753,1724286644127,-500.0,0.00010997,2]
[335503754,1724286644135,-500.0,0.00010997,2]
[335503755,1724286644144,-500.0,0.00010997,2]
[335503756,1724286644153,-14670.11,0.00010997,2]
[335503757,1724286644162,-14670.11,0.00010997,2]
[335503758,1724286644172,-949.22,0.00010997,2]
[335503759,1724286644181,-14670.11,0.00010997,2]
[335503760,1724286644198,-949.22,0.00010997,2]
[335503761,1724286644207,-500.0,0.00010997,2]
[335503762,1724286644216,-949.22,0.00010997,2]
[335503763,1724286644225,-500.0,0.00010997,2]
[335503764,1724286644236,-500.0,0.00010997,2]
[335503765,1724286644246,-151.0,0.00010997,2]
[335503766,1724286644255,-500.0,0.00010997,2]
[335503767,1724286644266,-500.0,0.00010997,2]
[335503768,1724286644275,-500.0,0.00010997,2]
[335503769,1724286644284,-500.0,0.00010997,2]
[335503770,1724286644293,-500.0,0.00010997,2]
[335503771,1724286644302,-500.0,0.00010997,2]
[335503772,1724286644311,-500.0,0.00010997,2]
[335503773,1724286644320,-500.0,0.00010997,2]
[335503774,1724286644328,-500.0,0.00010997,2]
[335503775,1724286644337,-202.14460011,0.00010997,2]
[335503776,1724286644346,-8090.77,0.00010997,2]
[335503777,1724286644354,-8090.77,0.00010997,2]
[335503778,1724286644365,-8090.77,0.00010997,2]
[335503779,1724286644374,-500.0,0.00010997,2]
[335503780,1724286644383,-500.0,0.00010997,2]
[335503781,1724286644392,-500.0,0.00010997,2]
[335503782,1724286644401,-500.0,0.00010997,2]
[335503783,1724286644411,-500.0,0.00010997,2]
[335503784,1724286644420,-500.0,0.00010997,2]
[335503785,1724286644429,-6865.78,0.00010997,2]
[335503786,1724286644439,-6865.78,0.00010997,2]
[335503787,1724286644448,-6865.78,0.00010997,2]
[335503788,1724286644457,-229.849046,0.00010997,2]
[335503789,1724286644466,-5603.21,0.00010997,2]
[335503790,1724286644475,-5603.21,0.00010997,2]
[335503791,1724286644484,-5603.21,0.00010997,2]
[335503792,1724286644493,-3119.73,0.00010997,2]
[335503793,1724286644503,-3119.73,0.00010997,2]
[335503794,1724286644512,-3119.73,0.00010997,2]
[335503795,1724286644521,-3119.73,0.00010997,2]
[335503796,1724286644530,-3119.73,0.00010997,2]
[335503797,1724286644539,-229.849046,0.00010997,2]
[335503798,1724286644548,-3119.73,0.00010997,2]
[335503799,1724286644557,-3119.73,0.00010997,2]
[335503800,1724286644568,-5574.71,0.00010997,2]
[335503801,1724286644579,-3119.73,0.00010997,2]
[335503802,1724286644588,-5574.71,0.00010997,2]
[335503803,1724286644598,-3119.73,0.00010997,2]
[335503804,1724286644607,-5574.71,0.00010997,2]
[335503805,1724286644615,-3119.73,0.00010997,2]
[335503806,1724286644624,-3119.73,0.00010997,2]
[335503807,1724286644633,-3119.73,0.00010997,2]
[335503808,1724286644643,-3119.73,0.00010997,2]
[335503809,1724286644652,-3119.73,0.00010997,2]
[335503810,1724286644661,-1810.97,0.00010997,2]
[335503811,1724286644670,-1810.97,0.00010997,2]
[335503812,1724286644680,-1810.97,0.00010997,2]
[335503813,1724286644689,-1810.97,0.00010997,2]
[335503814,1724286644698,-1810.97,0.00010997,2]
[335503815,1724286644707,-1810.97,0.00010997,2]
[335503816,1724286644716,-1810.97,0.00010997,2]
[335503817,1724286644725,-1810.97,0.00010997,2]
[335503818,1724286644735,-1810.97,0.00010997,2]
[335503819,1724286644744,-1810.97,0.00010997,2]
[335503820,1724286644753,-1810.97,0.00010997,2]
[335503821,1724286644763,-8505.29,0.00010997,2]
[335503822,1724286644771,-1810.97,0.00010997,2]
[335503823,1724286644781,-8505.29,0.00010997,2]
[335503824,1724286644790,-1810.97,0.00010997,2]
[335503825,1724286644799,-8505.29,0.00010997,2]
[335503826,1724286644808,-1810.97,0.00010997,2]
[335503827,1724286644817,-8505.29,0.00010997,2]
[335503828,1724286644826,-561.68,0.00010997,2]
[335503829,1724286644835,-1810.97,0.00010997,2]
[335503830,1724286644844,-8505.29,0.00010997,2]
[335503831,1724286644853,-561.68,0.00010997,2]
[335503832,1724286644862,-1810.97,0.00010997,2]
[335503833,1724286644871,-8505.29,0.00010997,2]
[335503834,1724286644881,-561.68,0.00010997,2]
[335503835,1724286644890,-8505.29,0.00010997,2]
[335503836,1724286644899,-8505.29,0.00010997,2]
[335503837,1724286644908,-1114.07,0.00010997,2]
[335503838,1724286644917,-8505.29,0.00010997,2]
[335503839,1724286644926,-1114.07,0.00010997,2]
[335503840,1724286644935,-8505.29,0.00010997,2]
[335503841,1724286644944,-1114.07,0.00010997,2]
[335503842,1724286644953,-8505.29,0.00010997,2]
[335503843,1724286644962,-8505.29,0.00010997,2]
[335503844,1724286644970,-8505.29,0.00010997,2]
[335503845,1724286644979,-9033.01,0.00010997,2]
[335503846,1724286644989,-8505.29,0.00010997,2]
[335503847,1724286644998,-9033.01,0.00010997,2]
[335503848,1724286645007,-9033.01,0.00010997,2]
[335503849,1724286645016,-1303.34,0.00010997,2]
[335503850,1724286645025,-1303.34,0.00010997,2]
[335503851,1724286645034,-1303.34,0.00010997,2]
[335503852,1724286645043,-1303.34,0.00010997,2]
[335503853,1724286645052,-1303.34,0.00010997,2]
[335503854,1724286645061,-1303.34,0.00010997,2]
[335503855,1724286645070,-1303.34,0.00010997,2]
[335503856,1724286645079,-1303.34,0.00010997,2]
[335503857,1724286645088,-1303.34,0.00010997,2]
[335503858,1724286645097,-1303.34,0.00010997,2]
[335503859,1724286645107,-1303.34,0.00010997,2]
[335503860,1724286645116,-1303.34,0.00010997,2]
[335503861,1724286645126,-1303.34,0.00010997,2]
[335503862,1724286645135,-1303.34,0.00010997,2]
[335503863,1724286645144,-1303.34,0.00010997,2]
[335503864,1724286645153,-1303.34,0.00010997,2]
[335503865,1724286645162,-151.0,0.00010997,2]
[335503866,1724286645171,-1303.34,0.00010997,2]
[335503867,1724286645180,-151.0,0.00010997,2]
[335503868,1724286645189,-1303.34,0.00010997,2]
[335503869,1724286645198,-1303.34,0.00010997,2]
[335503870,1724286645207,-151.0,0.00010997,2]
[335503871,1724286645216,-1303.35510564,0.00010997,2]
[335503872,1724286645225,-1454.04,0.00010997,2]
[335503873,1724286645234,-1454.04,0.00010997,2]
[335503874,1724286645243,-1454.04,0.00010997,2]
[335503875,1724286645252,-10239.95,0.00010997,2]
[335503876,1724286645261,-10239.95,0.00010997,2]
[335503877,1724286645271,-1511.65,0.00010997,2]
[335503878,1724286645280,-10239.95,0.00010997,2]
[335503879,1724286645289,-1511.65,0.00010997,2]
[335503880,1724286645298,-1511.65,0.00010997,2]
[335503881,1724286645307,-2297.57,0.00010997,2]
[335503882,1724286645316,-2297.57,0.00010997,2]
[335503884,1724286645401,-2297.57,0.00010997,2]
[335503886,1724286645410,-2297.57,0.00010997,2]
[335503887,1724286645419,-2297.57,0.00010997,2]
[335503888,1724286645428,-2297.57,0.00010997,2]
[335503889,1724286645439,-2297.57,0.00010997,2]
[335503890,1724286645458,-2297.57,0.00010997,2]
[335503891,1724286645467,-2297.57,0.00010997,2]
[335503892,1724286645476,-2297.57,0.00010997,2]
[335503893,1724286645485,-2297.57,0.00010997,2]
[335503894,1724286645495,-2297.57,0.00010997,2]
[335503895,1724286645504,-2297.57,0.00010997,2]
[335503896,1724286645513,-2297.57,0.00010997,2]
[335503897,1724286645522,-2297.57,0.00010997,2]
[335503898,1724286645531,-2297.57,0.00010997,2]
[335503899,1724286645540,-2297.57,0.00010997,2]
[335503900,1724286645550,-2297.57,0.00010997,2]
[335503901,1724286645558,-2297.57,0.00010997,2]
[335503902,1724286645569,-151.0,0.00010997,2]
[335503903,1724286645579,-2297.79385659,0.00010997,2]
[335503904,1724286645588,-151.0,0.00010997,2]
[335503905,1724286645597,-500.0,0.00010997,2]
[335503906,1724286645606,-789.2,0.00010997,2]
[335503907,1724286645616,-500.0,0.00010997,2]
[335503908,1724286645625,-17284.01,0.00010997,2]
[335503909,1724286645635,-789.2,0.00010997,2]
[335503910,1724286645645,-602.16510639,0.00010997,2]
[335503911,1724286645655,-789.2,0.00010997,2]
[335503912,1724286645663,-17284.01,0.00010997,2]
[335503913,1724286645673,-72516.68,0.00010997,2]
[335503914,1724286645682,-6111.90971557,0.00010997,2]
[335503915,1724286645964,-10231.82958382,0.00010997,2]
[335503916,1724286645975,-940.27070061,0.00010997,2]
[335503917,1724286645984,-60259.18352667,0.00010997,2]
[335503918,1724286646000,-12257.49647333,0.00010997,2]
[335503919,1724286646010,-2961.49,0.00010997,2]
[335503920,1724286646019,-16162.04751446,0.00010997,2]
[335503921,1724286646030,-20046.88647575,0.00010997,2]
[335503922,1724286646040,-522.95955266,0.00010997,2]
[335503923,1724286646068,-1240.85083947,0.00010997,2]
[335503924,1724286646079,-453.0,0.00010997,2]
[335503925,1724286646090,-34090.93561766,0.00010997,2]
[335503926,1724286646099,-2961.49,0.00010997,2]
[335503927,1724286646109,-2961.49,0.00010997,2]
[335503928,1724286646118,-70491.55425932,0.00010997,2]
[335503929,1724286646133,-1507.57772365,0.00010997,2]
[335503930,1724286646144,-435.35854429,0.00010997,2]
[335503931,1724286646387,-5663.40947274,0.00010997,2]
[335503932,1724286646396,-2961.49,0.00010997,2]
[335503933,1724286646405,-78097.9,0.00010997,2]
[335503934,1724286646414,-2961.49,0.00010997,2]
[335503935,1724286646423,-78097.9,0.00010997,2]
[335503936,1724286646433,-2961.49,0.00010997,2]
[335503937,1724286646442,-74546.27506796,0.00010997,2]
[335503938,1724286646963,-40.13699668,0.00010997,2]
[335503939,1724286646982,-3511.48793536,0.00010997,2]
[335503940,1724286646992,-2961.49,0.00010997,2]
[335503941,1724286647002,-25498.58964239,0.00010997,2]
[335503942,1724286647014,-3470.13415581,0.00010997,2]
[335503943,1724286647025,-2706.21367366,0.00010997,2]
[335503944,1724286647037,-46422.96252814,0.00010997,2]
[335503945,1724286647047,-2961.49,0.00010997,2]
[335503946,1724286647057,-78097.9,0.00010997,2]
[335503947,1724286647067,-2961.49,0.00010997,2]
[335503948,1724286647076,-1964.44433759,0.00010997,2]
[335503949,1724286647419,-155.0,9.999e-05,2]
[335503950,1724286647429,-500.0,0.00010996,2]
[335503951,1724286647439,-500.0,0.00010996,2]
[335503952,1724286647452,-166.69127506,0.00010997,2]
[335503953,1724286647471,-289.10000002,0.00010996,2]
[335503954,1724286647505,-210.89999998,0.00010996,2]
[335503955,1724286647514,-9823.18847096,0.00010997,2]
[335503956,1724286648152,-321.8,0.00010959,2]
[335503957,1724286648163,-173.14,0.00010959,2]
[335503958,1724286648174,-214.5917709,0.00010995,2]
[335503959,1724286648201,-449.4382291,0.00010995,2]
[335503960,1724286648212,-592.0,0.00010996,2]
[335503961,1724286648222,-500.0,0.00010996,2]
[335503962,1724286648231,-664.03,0.00010996,2]
[335503963,1724286648241,-664.03,0.00010996,2]
[335503964,1724286648250,-664.03,0.00010996,2]
[335503965,1724286648259,-664.03,0.00010996,2]
[335503966,1724286648269,-664.03,0.00010996,2]
[335503967,1724286648278,-664.03,0.00010996,2]
[335503968,1724286648287,-664.03,0.00010996,2]
[335503969,1724286648296,-664.03,0.00010996,2]
[335503970,1724286648306,-1987.1979648,0.00010997,2]
[335503972,1724286715297,315.18,9.699e-05,2]
[335503973,1724286841063,3034.58196902,9.899e-05,2]
[335503974,1724286842715,631.32,8.219e-05,2]
[335503976,1724286929636,2876.0004,9.829e-05,2]
[335503977,1724287068574,3034.58196902,9.899e-05,2]
[335503978,1724287142565,300.09116622,9.899e-05,2]
[335503979,1724287302629,668.13,8.219e-05,2]
[335503980,1724287340572,168.32,9.843e-05,2]
[335503981,1724287376189,2112.33,9.837e-05,2]
[335503982,1724287418820,168.0,9.825e-05,2]
[335503985,1724287463956,250.0,9.792e-05,2]
[335503986,1724287574024,600.0,9.786e-05,2]
[335503987,1724287590456,-618.52,9.924e-05,2]
[335503988,1724287590488,-400.0,9.932e-05,2]
[335503989,1724287590512,-265.6,9.977e-05,2]
[335503990,1724287590533,-3063.66756571,9.988e-05,2]
[335503992,1724287625656,158.79,7.114e-05,2]
[335503993,1724287625754,158.79,9.511e-05,2]
[335503997,1724287692320,26168.97687993,9.899e-05,2]
[335503998,1724287700674,1739.34,9.847e-05,2]
[335503999,1724287723879,1311.43352193,9.511e-05,2]
[335504001,1724287753895,1311.43352193,9.511e-05,2]
[335504002,1724287758620,2920.21,9.868e-05,2]
[335504004,1724287781845,615.0,9.511e-05,2]
[335504005,1724287792168,888.89,8.219e-05,2]
[335504029,1724287831573,-290.3842581,9.988e-05,2]
[335504031,1724287831584,-300.0,9.999e-05,2]
[335504033,1724287831593,-500.0,0.0001,2]
[335504035,1724287831602,-3797.42067042,0.0001,2]
[335504037,1724287831614,-1002.27263651,0.0001,2]
[335504039,1724287831623,-150.0,0.00010055,2]
[335504041,1724287831632,-4005.62,0.00010071,2]
[335504043,1724287831641,-155.0,0.00010097,2]
[335504045,1724287831652,-999.99,0.00010211,2]
[335504046,1724287831661,-150.0,0.00010211,2]
[335504047,1724287831670,-421.43,0.00010212,2]
[335504048,1724287831679,-421.43,0.00010212,2]
[335504049,1724287831688,-1725.47,0.00010212,2]
[335504050,1724287831697,-9999.99,0.00010212,2]
[335504051,1724287831706,-694.76,0.00010212,2]
[335504052,1724287831716,-420.92,0.00010212,2]
[335504053,1724287831725,-150.0,0.00010219,2]
[335504054,1724287831734,-888.89,0.00010469,2]
[335504055,1724287831743,-299.99,0.00010469,2]
[335504056,1724287831752,-9298.74,0.0001047,2]
[335504057,1724287831762,-499.99,0.0001047,2]
[335504058,1724287831771,-150.99,0.0001047,2]
[335504059,1724287831780,-331.74,0.00010477,2]
[335504060,1724287831789,-440.37857631,0.00010699,2]
[335504061,1724287831799,-2500.0,0.00010795,2]
[335504062,1724287831808,-507.64049701,0.000108,4]
[335504064,1724287831923,-1031.193146,0.00010858,2]
[335504065,1724287831935,-328.7689277,0.00010858,2]
[335504066,1724287831944,-176.88732549,0.00010885,2]
[335504067,1724287831953,-169.84462218,0.00010886,2]
[335504068,1724287831962,-500.0,0.00010886,2]
[335504069,1724287831970,-1000.0,0.00010886,2]
[335504070,1724287831981,-906.0,0.00010888,2]
[335504071,1724287831990,-941.55756,0.0001089,2]
[335504072,1724287832000,-201.01769198,0.0001089,2]
[335504073,1724287832009,-4996.69411254,0.00010892,2]
[335504074,1724287832019,-4996.69411252,0.00010893,2]
[335504075,1724287832029,-4996.69411252,0.00010894,2]
[335504076,1724287832039,-176.88732549,0.00010894,2]
[335504077,1724287832048,-150955.9469868,0.00010895,2]
[335504078,1724287832059,-2481.20419989,0.00010895,2]
[335504079,1724287832070,-976.47953325,0.00010895,2]
[335504080,1724287832096,-768.67292104,0.00010895,2]
[335504081,1724287832107,-751.39001507,0.00010895,2]
[335504082,1724287832118,-1865.69249295,0.00010895,2]
[335504083,1724287832129,-1926.93036806,0.00010895,2]
[335504084,1724287832140,-5731.6929135,0.00010895,2]
[335504085,1724287832152,-503.88900716,0.00010895,2]
[335504086,1724287832186,-2585.10929238,0.00010895,2]
[335504087,1724287832200,-298.3,0.00010895,2]
[335504088,1724287832212,-341.48088377,0.00010895,2]
[335504089,1724287832224,-555.90330277,0.00010895,2]
[335504090,1724287832235,-6558.09753364,0.00010895,2]
[335504091,1724287832246,-13383.1972599,0.00010895,2]
[335504092,1724287832266,-327.85685687,0.00010895,2]
[335504093,1724287832277,-54988.15643295,0.00010895,2]
[335504094,1724287832287,-3212.9046,0.00010895,2]
[335504095,1724287832297,-328.1519,0.00010896,2]
[335504096,1724287832305,-152.35222135,0.00010897,2]
[335504097,1724287832316,-1293.96377084,0.00010899,2]
[335504098,1724287832325,-1293.96377079,0.00010899,2]
[335504099,1724287832335,-1293.96377079,0.00010899,2]
[335504100,1724287832344,-1293.96377079,0.00010899,2]
[335504101,1724287832353,-1293.96377079,0.00010899,2]
[335504102,1724287832363,-1293.96377079,0.00010899,2]
[335504103,1724287832372,-1293.96377079,0.00010899,2]
[335504104,1724287832382,-1293.96377079,0.00010899,2]
[335504105,1724287832392,-1293.96377079,0.00010899,2]
[335504106,1724287832401,-161.31541776,0.000109,2]
[335504107,1724287832410,-161.31541776,0.000109,2]
[335504108,1724287832419,-1293.96377079,0.000109,2]
[335504109,1724287832429,-1000.0,0.000109,2]
[335504110,1724287832439,-150.81,0.00010948,2]
[335504111,1724287832448,-383.21785356,0.00010958,2]
[335504112,1724287832458,-500.0,0.00010958,2]
[335504113,1724287832467,-259.36026897,0.00010958,2]
[335504114,1724287832476,-500.0,0.00010958,2]
[335504115,1724287832486,-500.0,0.00010958,2]
[335504116,1724287832496,-500.0,0.00010958,2]
[335504117,1724287832505,-500.0,0.00010958,2]
[335504118,1724287832514,-720.04,0.00010958,2]
[335504119,1724287832523,-720.04,0.00010958,2]
[335504120,1724287832533,-500.0,0.00010958,2]
[335504121,1724287832542,-500.0,0.00010958,2]
[335504122,1724287832551,-500.0,0.00010958,2]
[335504123,1724287832560,-500.0,0.00010958,2]
[335504124,1724287832569,-500.0,0.00010958,2]
[335504125,1724287832578,-500.0,0.00010958,2]
[335504126,1724287832588,-1291.86,0.00010958,2]
[335504127,1724287832597,-1291.86,0.00010958,2]
[335504128,1724287832606,-500.0,0.00010958,2]
[335504129,1724287832616,-500.0,0.00010958,2]
[335504130,1724287832625,-500.0,0.00010958,2]
[335504131,1724287832634,-500.0,0.00010958,2]
[335504132,1724287832643,-500.0,0.00010958,2]
[335504133,1724287832652,-500.0,0.00010958,2]
[335504134,1724287832661,-500.0,0.00010958,2]
[335504135,1724287832670,-500.0,0.00010958,2]
[335504136,1724287832680,-500.0,0.00010958,2]
[335504137,1724287832690,-770.34,0.00010958,2]
[335504138,1724287832700,-770.34,0.00010958,2]
[335504139,1724287832709,-500.0,0.00010958,2]
[335504140,1724287832721,-500.0,0.00010958,2]
[335504141,1724287832730,-500.0,0.00010958,2]
[335504142,1724287832741,-500.0,0.00010958,2]
[335504143,1724287832751,-585.04,0.00010958,2]
[335504144,1724287832760,-585.04,0.00010958,2]
[335504145,1724287832769,-500.0,0.00010958,2]
[335504146,1724287832778,-500.0,0.00010958,2]
[335504147,1724287832787,-500.0,0.00010958,2]
[335504148,1724287832796,-500.0,0.00010958,2]
[335504149,1724287832806,-632.96,0.00010958,2]
[335504150,1724287832815,-632.96,0.00010958,2]
[335504151,1724287832824,-544.61,0.00010958,2]
[335504152,1724287832833,-544.61,0.00010958,2]
[335504153,1724287832842,-500.0,0.00010958,2]
[335504154,1724287832852,-500.0,0.00010958,2]
[335504155,1724287832861,-500.0,0.00010958,2]
[335504156,1724287832870,-500.0,0.00010958,2]
[335504157,1724287832879,-568.27,0.00010958,2]
[335504158,1724287832889,-568.27,0.00010958,2]
[335504159,1724287832899,-743.89,0.00010958,2]
[335504160,1724287832908,-743.89,0.00010958,2]
[335504161,1724287832917,-588.02,0.00010958,2]
[335504162,1724287832926,-588.02,0.00010958,2]
[335504163,1724287832938,-500.0,0.00010958,2]
[335504164,1724287832947,-519.88627302,0.00010958,2]
[335504165,1724287832956,-500.0,0.00010958,2]
[335504166,1724287832965,-500.0,0.00010958,2]
[335504167,1724287832975,-500.0,0.00010958,2]
[335504168,1724287832984,-500.0,0.00010958,2]
[335504169,1724287832993,-150.0,0.00010958,2]
[335504170,1724287833002,-150.0,0.00010958,2]
[335504171,1724287833013,-500.0,0.00010958,2]
[335504172,1724287833021,-500.0,0.00010958,2]
[335504173,1724287833031,-500.0,0.00010958,2]
[335504174,1724287833042,-500.0,0.00010958,2]
[335504175,1724287833051,-500.0,0.00010958,2]
[335504176,1724287833060,-500.0,0.00010958,2]
[335504177,1724287833069,-500.0,0.00010958,2]
[335504178,1724287833078,-500.0,0.00010958,2]
[335504179,1724287833088,-500.0,0.00010958,2]
[335504180,1724287833097,-500.0,0.00010958,2]
[335504181,1724287833106,-500.0,0.00010958,2]
[335504182,1724287833116,-523.48525706,0.00010958,2]
[335504183,1724287833125,-610.41,0.00010958,2]
[335504184,1724287833135,-610.41,0.00010958,2]
[335504185,1724287833145,-500.0,0.00010958,2]
[335504186,1724287833154,-500.0,0.00010958,2]
[335504187,1724287833163,-500.0,0.00010958,2]
[335504188,1724287833173,-500.0,0.00010958,2]
[335504189,1724287833182,-681.54,0.00010958,2]
[335504190,1724287833191,-681.54,0.00010958,2]
[335504191,1724287833200,-500.0,0.00010958,2]
[335504192,1724287833210,-500.0,0.00010958,2]
[335504193,1724287833219,-500.0,0.00010958,2]
[335504194,1724287833228,-500.0,0.00010958,2]
[335504195,1724287833237,-500.0,0.00010958,2]
[335504196,1724287833247,-500.0,0.00010958,2]
[335504197,1724287833256,-500.0,0.00010958,2]
[335504198,1724287833266,-500.0,0.00010958,2]
[335504199,1724287833275,-500.0,0.00010958,2]
[335504200,1724287833284,-500.0,0.00010958,2]
[335504201,1724287833293,-1532.17,0.00010958,2]
[335504202,1724287833303,-1532.17,0.00010958,2]
[335504203,1724287833312,-500.0,0.00010958,2]
[335504204,1724287833321,-500.0,0.00010958,2]
[335504205,1724287833331,-1251.87,0.00010958,2]
[335504206,1724287833340,-1251.87,0.00010958,2]
[335504207,1724287833349,-500.0,0.00010958,2]
[335504208,1724287833359,-2199.09,0.00010958,2]
[335504209,1724287833368,-2199.09,0.00010958,2]
[335504210,1724287833377,-500.0,0.00010958,2]
[335504211,1724287833386,-500.0,0.00010958,2]
[335504212,1724287833396,-1528.47,0.00010958,2]
[335504213,1724287833406,-1528.47,0.00010958,2]
[335504214,1724287833415,-500.0,0.00010958,2]
[335504215,1724287833424,-3364.07,0.00010958,2]
[335504216,1724287833434,-3364.07,0.00010958,2]
[335504217,1724287833443,-2395.05,0.00010958,2]
[335504218,1724287833452,-2395.05,0.00010958,2]
[335504219,1724287833461,-500.0,0.00010958,2]
[335504220,1724287833471,-500.0,0.00010958,2]
[335504221,1724287833480,-500.0,0.00010958,2]
[335504222,1724287833490,-2370.65,0.00010958,2]
[335504223,1724287833499,-2370.65,0.00010958,2]
[335504224,1724287833509,-513.09530022,0.00010958,2]
[335504225,1724287833518,-500.0,0.00010958,2]
[335504226,1724287833528,-2529.73,0.00010958,2]
[335504227,1724287833537,-2529.73,0.00010958,2]
[335504228,1724287833637,-500.0,0.00010958,2]
[335504229,1724287833647,-500.0,0.00010958,2]
[335504230,1724287833657,-500.0,0.00010958,2]
[335504231,1724287833667,-624.33,0.00010958,2]
[335504232,1724287833677,-500.0,0.00010958,2]
[335504233,1724287833687,-500.0,0.00010958,2]
[335504234,1724287833696,-500.0,0.00010958,2]
[335504235,1724287833706,-500.0,0.00010958,2]
[335504236,1724287833716,-500.0,0.00010958,2]
[335504237,1724287833725,-500.0,0.00010958,2]